Cogmind - Beta 10.2 *** ADVENTURER MODE // 2021.09.26 @ 21:09:41 Player: Jezoensis Result: Self-destructed Performance ------------- Evolutions (1) 500 Regions Visited (5) 1000 Robots Destroyed (40) 200 Value Destroyed (751) 751 Prototype IDs (2) 40 Alien Tech Used (0) 0 Bonus (133) 133 TOTAL SCORE: 2624 Bonus ------- High Alert Combat Kills 22 Follower Combat Kills 128 Friendly Fire -17 Cogmind --------- Core Integrity 248/400 Matter 300/300 Energy 280/280 System Corruption 0% Temperature Cool (0) Movement Walking (120) Location -9/Exiles Parts ------- > --- POWER (1) -------- Cooled Ion Engine > --- PROPULSION (3) --- Aluminum Leg Aluminum Leg Improved Aluminum Leg > --- UTILITY (3) ------ Large Storage Unit Makeshift Terrain Scanner Terrain Scan Processor > --- WEAPON (2) ------- Heavy EM Pulse Gun Heavy Assault Rifle > --- INVENTORY (10) --- Improved Ion Engine Aluminum Leg Medium Storage Unit Large Storage Unit High-capacity Matter Pod (200) Improved Terrain Scanner Medium Laser Assault Rifle Mining Laser Peak State ------------ > --- POWER ------------ Cooled Ion Engine > --- PROPULSION ------- Light Treads Light Treads Improved Aluminum Leg > --- UTILITY ---------- Large Storage Unit Makeshift Terrain Scanner Terrain Scan Processor > --- WEAPON ----------- Heavy EM Pulse Gun Heavy Assault Rifle > --- INVENTORY -------- Improved Ion Engine Medium Storage Unit Large Storage Unit High-capacity Matter Pod Improved Terrain Scanner Medium Laser Assault Rifle Mining Laser [Rating: 19] Favorites ----------- Power Ion Engine Engine Ion Engine Propulsion Light Treads Treads Light Treads Leg Aluminum Leg Flight Unit Improved Flight Unit Utility Large Storage Unit Device Makeshift Terrain Scanner Storage Large Storage Unit Processor Terrain Scan Processor Weapon EM Pulse Gun Energy Gun EM Pulse Gun Ballistic Gun Assault Rifle Special Weapon Mining Laser Build | -11 -10 -10 -9 -9 -9 ------- Run | Scr Mat Min Mat Min Exi Slots Evolved 2 | . . . 2 . . Power . | . . . . . . Propulsion 1 | . . . 1 . . Utility 1 | . . . 1 . . Weapon . | . . . . . . Parts Attached 33 | 7 11 1 8 6 . Power 4 | 1 1 . 2 . . Engine 4 | 1 1 . 2 . . Core . | . . . . . . Reactor . | . . . . . . Propulsion 11 | 2 1 . 3 5 . Treads 7 | 2 1 . 2 2 . Leg 3 | . . . . 3 . Wheel . | . . . . . . Hover . | . . . . . . Flight 1 | . . . 1 . . Utility 5 | 2 1 1 1 . . Device 2 | 1 . 1 . . . Storage 2 | 1 1 . . . . Processor 1 | . . . 1 . . Hackware . | . . . . . . Protection . | . . . . . . Artifact . | . . . . . . Weapon 13 | 2 8 . 2 1 . Energy Gun 6 | 1 4 . 1 . . Energy Cannon . | . . . . . . Ballistic Gun 3 | 1 . . 1 1 . Ballistic Cannon . | . . . . . . Launcher . | . . . . . . Special Weapon 4 | . 4 . . . . Impact Weapon . | . . . . . . Slashing Weapon . | . . . . . . Piercing Weapon . | . . . . . . Special Melee Weapon . | . . . . . . Unidentified Prototypes 2 | . . . 2 . . Parts Lost 2 | . . . . 2 . Power . | . . . . . . Propulsion 2 | . . . . 2 . Utility . | . . . . . . Weapon . | . . . . . . Highest Loss Streak 2 | . . . . 2 . Average Slot Usage (%) 99 | . 100 100 99 99 100 Engine 12 | . 14 14 10 11 11 Treads 28 | . 28 28 32 27 . Leg 2 | . . . . 5 33 Device 12 | . 14 14 11 11 11 Storage 12 | . 14 14 11 11 11 Processor 5 | . . . 10 11 11 Energy Gun 11 | . 12 14 11 11 11 Ballistic Gun 12 | . 14 14 11 11 11 Naked Turns . | . . . . . . Heaviest Build 31 | 14 26 26 31 31 31 Greatest Support 60 | 40 40 40 60 60 33 Greatest Overweight (x) 1 | . . . . 1 . Average Overweight (x) . | . . . . . . Largest Inventory Capacity 10 | 6 10 10 10 10 10 Average Capacity 8 | 5 6 10 10 10 10 Most Carried 10 | 4 8 9 10 10 9 Average Carried 7 | 2 5 8 8 9 9 Final Capacity 10 | 6 10 10 10 10 10 Final Carried 10 | 4 8 9 10 9 9 Class Distribution -------------------- 92% | Mutant 7% | Scavenger-Mutant Dominant Class ---------------- Mutant | -10/Materials Mutant | -10/Mines Mutant | -9/Materials Mutant | -9/Mines Scavenger-Mutant | -9/Exiles Resources | -11 -10 -10 -9 -9 -9 ----------- Run | Scr Mat Min Mat Min Exi Matter Collected 942 | 294 251 143 137 117 . Remotely . | . . . . . . Salvage Created 1281 | 168 371 162 382 198 . Parts 89 | 12 27 6 28 16 . Haulers Intercepted 4 | . 2 . 2 . . Recyclers Shooed . | . . . . . . Parts Field Recycled . | . . . . . . Retrieved Matter . | . . . . . . Parts Self-Destructed . | . . . . . . Prevented . | . . . . . . Kills | -11 -10 -10 -9 -9 -9 ------- Run | Scr Mat Min Mat Min Exi Combat Hostiles Destroyed 26 | . 7 5 8 6 . Guns 22 | . 5 4 8 5 . AOE 4 | . 2 1 . 1 . Classes Destroyed 10 | 2 4 . 2 2 . Worker 1 | . . . . 1 . Builder 1 | . . . 1 . . Tunneler 4 | 4 . . . . . Hauler 4 | . 2 . 2 . . Recycler 1 | 1 . . . . . Watcher 3 | . 2 . 1 . . Swarmer 13 | . 3 2 5 3 . Grunt 11 | . 4 3 2 2 . Duelist 1 | . . . . 1 . Sentry 1 | . . . 1 . . Best Kill Streak 7 | 3 2 2 7 3 . Combat Bots Only 6 | . 2 2 6 3 . Max Kills in Single Turn 2 | 1 1 1 2 1 . Gunslinging 1 | . . . 1 . . Exploded 1 | . 1 1 . 1 . Melee . | . . . . . . Uniques/NPCs Destroyed . | . . . . . . Combat | -11 -10 -10 -9 -9 -9 -------- Run | Scr Mat Min Mat Min Exi Damage Taken 795 | . 130 38 246 381 . Core 186 | . 29 5 89 63 . Absorbed by Shields . | . . . . . . Core Remaining (%) 93 | 100 . 86 . . . Volleys Fired 82 | 8 28 8 24 14 . Largest 2 | 2 2 2 2 2 . Hottest 100 | 60 100 60 63 68 . Shots Fired 156 | 16 48 16 48 28 . Gun 148 | 16 40 16 48 28 . Cannon . | . . . . . . Launcher . | . . . . . . Special 8 | . 8 . . . . Kinetic 74 | 8 20 8 24 14 . Thermal 8 | . 8 . . . . Explosive . | . . . . . . Electromagnetic 74 | 8 20 8 24 14 . Robot Hit Streak 24 | 6 24 8 15 20 . Robot Miss Streak 4 | 1 1 1 4 2 . Penetration Max . | . . . . . . Secondary Targets 5 | . 1 1 2 1 . Max Gunslinging Chain 1 | . 1 1 1 1 . Shots Hit Robots 106 | 11 32 13 28 22 . Core Hits 55 | 6 16 7 17 9 . Critical Hits 1 | . 1 . . . . Critical Kills . | . . . . . . Critical Parts Destroyed 1 | . 1 . . . . Melee Attacks . | . . . . . . Impact . | . . . . . . Slashing . | . . . . . . Piercing . | . . . . . . Sneak Attacks . | . . . . . . Combat Hostiles . | . . . . . . Follow-up Attacks . | . . . . . . Damage Inflicted 1552 | 124 472 210 422 324 . Guns 1403 | 124 404 159 422 294 . Cannons . | . . . . . . Explosions 149 | . 68 51 . 30 . Melee . | . . . . . . Ramming . | . . . . . . Kinetic 512 | 34 135 67 160 116 . Thermal 149 | . 68 51 . 30 . Explosive . | . . . . . . Electromagnetic 891 | 90 269 92 262 178 . Impact . | . . . . . . Slashing . | . . . . . . Piercing . | . . . . . . Highest Corruption . | . . . . . . Average Corruption . | . . . . . . Corruption Purged . | . . . . . . Overload Shots . | . . . . . . Overflow Damage . | . . . . . . Projectiles . | . . . . . . Explosions . | . . . . . . Melee . | . . . . . . Knockbacks . | . . . . . . Impact . | . . . . . . Kinetic . | . . . . . . Secondary . | . . . . . . Self-Inflicted Damage 28 | . . . . 28 . Shots 1 | . . . . 1 . Rammed . | . . . . . . Targets Rammed 1 | . . . . 1 . Kicked . | . . . . . . Crushed 1 | . . . . 1 . Highest Temperature 34 | . 34 9 7 30 . Average Temperature 11 | . 11 7 3 13 . Received Heat Transfer 210 | . 42 15 39 114 . Siege Activations . | . . . . . . Robots Corrupted . | . . . . . . Combat Hostiles . | . . . . . . Parts Fried 1 | . 1 . . . . Impact Corruptions . | . . . . . . Robots Melted . | . . . . . . Combat Hostiles . | . . . . . . Parts Melted . | . . . . . . Heat Transferred 100 | . 100 . . . . Parts Sabotaged . | . . . . . . Parts Stolen . | . . . . . . Parts Stripped . | . . . . . . Power Chain Reactions 4 | . 2 1 . 1 . Missiles Intercepted . | . . . . . . Alert | -11 -10 -10 -9 -9 -9 ------- Run | Scr Mat Min Mat Min Exi Peak Influence 528 | 25 264 186 528 223 . Initial 118 | . 13 29 61 118 . Average 168 | 11 118 89 294 159 . Maximum Alert Level 2 | . 1 . 2 1 . Low Security (%) 68 | 100 79 100 33 78 . Level 1 23 | . 20 . 39 21 . Level 2 8 | . . . 27 . . Level 3 . | . . . . . . Level 4 . | . . . . . . Level 5 . | . . . . . . High Security . | . . . . . . Max Security . | . . . . . . Squads Dispatched 1 | . . . 1 . . Investigation 1 | . . . 1 . . Extermination . | . . . . . . Reinforcement . | . . . . . . Assault . | . . . . . . Garrison . | . . . . . . Intercept . | . . . . . . Construction Impeded . | . . . . . . Haulers Reinforced . | . . . . . . Stealth | -11 -10 -10 -9 -9 -9 --------- Run | Scr Mat Min Mat Min Exi Distress Signals . | . . . . . . Communications Jammed . | . . . . . . Distress Signals . | . . . . . . Times Spotted 40 | . 11 5 18 6 . Peak Tracking Total 5 | . 3 3 5 3 . Tactical Retreats 1 | . 1 . . . . Traps | -11 -10 -10 -9 -9 -9 ------- Run | Scr Mat Min Mat Min Exi Traps Triggered 1 | . . . 1 . . Indirectly . | . . . . . . Trap Hack Attempts . | . . . . . . Triggered . | . . . . . . Disarmed . | . . . . . . Reprogrammed . | . . . . . . Reused . | . . . . . . Traps Extracted . | . . . . . . Installed . | . . . . . . Triggered 1 | . . . . 1 . Machines | -11 -10 -10 -9 -9 -9 ---------- Run | Scr Mat Min Mat Min Exi Machines Disabled 2 | . . . 2 . . Max in Single Turn 1 | . . . 1 . . Machines Sabotaged . | . . . . . . Garrisons Compromised . | . . . . . . Overloaded Fab Kills . | . . . . . . Fab Network Shutdowns . | . . . . . . Hacking | -11 -10 -10 -9 -9 -9 --------- Run | Scr Mat Min Mat Min Exi Machines Accessed 12 | . 8 . 4 . . Terminals 11 | . 7 . 4 . . Fabricators . | . . . . . . Repair Stations . | . . . . . . Recycling Units 1 | . 1 . . . . Scanalyzers . | . . . . . . Garrison Access . | . . . . . . Total Hacks 38 | . 27 . 11 . . Successful 28 | . 18 . 10 . . Failed 10 | . 9 . 1 . . Catastrophic 1 | . 1 . . . . Database Lockouts . | . . . . . . Manual 30 | . 21 . 9 . . Terminals 36 | . 25 . 11 . . Fabricators . | . . . . . . Repair Stations . | . . . . . . Recycling Units 2 | . 2 . . . . Scanalyzers . | . . . . . . Garrison Access . | . . . . . . Terminal Hacks 13 | . 9 . 4 . . Part Schematic 2 | . 2 . . . . Robot Analysis 2 | . 1 . 1 . . Branch Access Points 1 | . . . 1 . . Terminal Index 2 | . 1 . 1 . . Locate Traps 4 | . 4 . . . . Hauler Manifests 1 | . 1 . . . . Zone Layout 1 | . . . 1 . . Fabricator Hacks . | . . . . . . Repair Station Hacks . | . . . . . . Recycling Unit Hacks . | . . . . . . Scanalyzer . | . . . . . . Garrison Access Hacks . | . . . . . . Unauthorized Hacks 15 | . 9 . 6 . . Terminals 13 | . 7 . 6 . . Track 6 | . 4 . 2 . . Botnet 5 | . 3 . 2 . . Disrupt 1 | . . . 1 . . Operators 1 | . . . 1 . . Fabricators . | . . . . . . Repair Stations . | . . . . . . Recycling Units 2 | . 2 . . . . Reject 1 | . 1 . . . . Recyclers 1 | . 1 . . . . Scanalyzers . | . . . . . . Garrison Access . | . . . . . . Data Cores Recovered . | . . . . . . Used . | . . . . . . Hacking Detections 11 | . 7 . 4 . . Full Trace Events . | . . . . . . Feedback Events . | . . . . . . Feedback Blocked . | . . . . . . Robot Schematics Acquired . | . . . . . . Robots Built . | . . . . . . Matter . | . . . . . . Time . | . . . . . . Total Robot Build Rating . | . . . . . . Part Schematics Acquired 2 | . 2 . . . . Parts Built . | . . . . . . Matter . | . . . . . . Time . | . . . . . . Total Part Build Rating . | . . . . . . Parts Repaired . | . . . . . . Time . | . . . . . . Parts Recycled . | . . . . . . Recycled Matter . | . . . . . . Retrieved Matter . | . . . . . . Retrieved Components . | . . . . . . Parts Scanalyzed . | . . . . . . Part Schematics Acquired . | . . . . . . Parts Damaged . | . . . . . . Bothacking | -11 -10 -10 -9 -9 -9 ------------ Run | Scr Mat Min Mat Min Exi Used RIF Installer . | . . . . . . Robots Hacked . | . . . . . . Non-combat . | . . . . . . Combat . | . . . . . . Robot Hacks Applied . | . . . . . . Relay Couplers Released . | . . . . . . Robots Rewired . | . . . . . . Allies Hacked . | . . . . . . Hacks Repelled . | . . . . . . Allies | -11 -10 -10 -9 -9 -9 -------- Run | Scr Mat Min Mat Min Exi Total Allies 2 | . . 2 . . . Largest Group 2 | . . 2 1 1 . Highest-Rated Group 54 | . . 54 31 31 . Highest-Rated Ally 31 | . . 31 31 31 . Total Orders . | . . . . . . Ally Attacks 39 | . . 10 28 1 . Total Damage 550 | . . 126 424 . . Kills 10 | . . 2 8 . . Allies Corrupted . | . . . . . . Allies Melted . | . . . . . . Intel | -11 -10 -10 -9 -9 -9 ------- Run | Scr Mat Min Mat Min Exi Robot Analysis Total 2 | . 1 . 1 . . Derelict Logs Recovered 1 | . . . . 1 . Drone Launches . | . . . . . . Drone Recoveries . | . . . . . . Exploration | -11 -10 -10 -9 -9 -9 ------------- Run | Scr Mat Min Mat Min Exi Turns Passed 1839 | 120 688 125 520 324 62 Spaces Moved 979 | 56 359 62 271 180 51 Core 8 | 8 . . . . . Treads 877 | 48 359 62 271 137 . Legs 94 | . . . . 43 51 Wheels . | . . . . . . Hover . | . . . . . . Flight . | . . . . . . Fastest Speed 50 | 50 160 160 160 120 120 Average Speed 155 | 144 160 160 160 150 120 Slowest Speed 160 | 160 160 160 160 160 120 Overloaded Moves . | . . . . . . Propulsion Burnouts . | . . . . . . Robots Hopped . | . . . . . . Cave-ins Triggered . | . . . . . . Exploration Rate (%) 29 | 4 70 18 34 30 20 Regions Visited 5 Branch Regions 3 Pre-discovered Areas . | . . . . . . Known Exits Taken 1 | . . . 1 . . Unknown Exits Taken 4 | 1 1 1 . 1 . Scrap Searched 2 | . . 1 . 1 . Spaces Dug 8 | . 8 . . . . Terrain Destroyed 28 | . 15 8 . 5 . Melee . | . . . . . . Projectile 8 | . 8 . . . . AOE 20 | . 7 8 . 5 . Terrain Rammed . | . . . . . . Walls Destroyed . | . . . . . . Machines Disabled . | . . . . . . Actions | -11 -10 -10 -9 -9 -9 --------- Run | Scr Mat Min Mat Min Exi Total 1121 | 77 407 71 311 204 51 Wait 1 | . 1 . . . . Move 974 | 55 358 61 270 179 51 Hop . | . . . . . . Pick Up 16 | 7 5 1 2 1 . Fast Attach 11 | 4 . . 3 4 . Attach 7 | 3 . . 2 2 . Detach 2 | . . . 2 . . Swap 15 | . 11 1 3 . . Drop 12 | . 4 . 5 3 . Fire 82 | 8 28 8 24 14 . Melee . | . . . . . . Ram . | . . . . . . Kick . | . . . . . . Crush 1 | . . . . 1 . Escape Stasis . | . . . . . . Rewire . | . . . . . . Trap . | . . . . . . Miscellaneous . | . . . . . . Route ------- -11/Scrapyard -10/Materials (discovered 3 exits: *Mat x2 / [*Min]) -10/Mines -9/Materials (discovered 2 exits: *Min x2) -9/Mines -9/Exiles History --------- Turn | Location | Event 9 | -11/Scrapyard | Discovered new exit (range 15) 121 | -11/Scrapyard | Entered Materials 298 | -10/Materials | Discovered new exit (range 13) 311 | -10/Materials | Build established: Mutant 430 | -10/Materials | Discovered new exit (range 11) 707 | -10/Materials | Discovered new exit (range 14) 809 | -10/Materials | Entered Mines 914 | -10/Mines | Discovered new exit (range 7) 934 | -10/Mines | Entered Materials 934 | -9/Materials | Accompanied by 1 ally 934 | -9/Materials | Evolved 2 slots: Propulsion x1, Utility x1 939 | -9/Materials | Led the pair of lost Derelicts to an unsafe place 1167 | -9/Materials | Identified exit to Mines 1454 | -9/Materials | Entered Mines 1454 | -9/Mines | Accompanied by 1 ally 1486 | -9/Mines | Learned Materials stockpile data 1534 | -9/Mines | Found a hidden stash of uninstalled traps 1774 | -9/Mines | Deemed a non-threat by the Exiles lab entrance 1774 | -9/Mines | Discovered new exit (range 5) 1778 | -9/Mines | Entered Exiles 1778 | -9/Exiles | Found Exiles lab abandoned 1840 | -9/Exiles | Self-destructed Last Messages --------------- 01702_ L-31 Rogue destroyed. 01702_ Switching to secondary target: G-34 Mercenary. 01708_ Chain reaction triggered in Ion Engine. 01708_ G-34 Mercenary destroyed. 01714_ Acquired 39 matter. 01716_ Acquired 8 matter. 01719_ Dropped Lgt. Treads. 01720_ Acquired Imp. Aluminum Leg. 01723_ Dropped Lgt. Treads. 01723_ Acquired Aluminum Leg. 01726_ Dropped Lgt. Treads. 01727_ Acquired Aluminum Leg. 01732_ Acquired 30 matter. 01757_ Searching scrap... 01757_ Found Imp. Sensor Array. 01757_ Found 18 Matter. 01774_ "No threat detected, you may enter." 01774_ EXIT=FOUND LOCATION=UNKNOWN GOAL=ESCAPE Map ----- +----------------------------------------------------+ | ?????????????????????????????????????????????????? | | ?????????????????????????????????????????????????? | | ?????????????????????????????????????????????????? | | ?????????????????????????????????????????????????? | | ?????????????????????????????????????????????????? | | ?????????????????????????????????????????????????? | | ?????????????????????????????????????????????????? | | ?????????????????????????????????????????????????? | | ?????????????????????????#???????????????????????? | | ?????????????????????????????????????????????????? | | ?????????????????????????????????????????????????? | | ?????????????????????????????????????????????????? | | ??????????????? ??"??????????#???????????????????? | | ????????????????????? ???#????#????#?????????????? | | ?????????????????????????????????????????????????? | | ???????????????????? ????#???????????#?#?????#???? | | ????????????????#??? "????????????#???#????????#?? | | ???????????????????#?????????????????????#???????? | | ?????????????????##??#?????#??#???#???????#???#?#? | | ????????????????????#??????????????????#???#?#?#?# | | ??????????????????#######???##?????#?????#??##??#? | | ?????????????????""""""""###??##???????#?##?#????? | | ???????????? ? """ """"##?????????????#??????#? | | ??????????? "" " ##?#???#??##????????##? | | ??????????? " """##????????#??##??????#? | | ?????????? "@"#???#??????#######??#?# | | ?????????? " "##?#??#????##" ##?#??? | | ?????????? ""###?????#?#" #?#?##? | | ?????????? """#??#??###" ##????# | | ?????????? "#????### #####? | | ???????????"" ###?## #### | | ?????????#??"" ##?## #"" | | ?????????????"" ### | | ????????????? ## | | ??????????"?"" #### | | ??????????? ? ""###"""""### | | ????????????? #"""##?#######?? | | ?????????????? ######??#?????#?? | | ?????????????? ###????#??#?###?#? | | ??????????????? " ##???#?#???#?#?#??? | | ???????????????? """ ""#?#????????#??#???# | | ???????????????????"#" "##???#?##????#???### | | ?????????????????????#"""""""##???????#????#????## | | ??????????????????????#########????????????#???##? | | ??????????????????#?#??????#??#??#???#???###?????? | | ?????????????????????????#????#???#?????????#?#?#? | | ??????????????????????????????#??????????????##??? | | ??????????????????????????????????????#??##??????# | | ?????????????????????????????????????#?##????????? | | ????????????????????????????????##??#????????????? | +----------------------------------------------------+ Best States ------------- Heat Dissipation 28 Energy Generation 14 Energy Capacity 280 Matter Stores 300 Matter Capacity 300 Sight Range 16 Terrain Scan Range 18 Terrain Scan Density 85 Resistance: KI 20 Resistance: TH 20 Resistance: EX 20 Resistance: EM 20 Resistance: I 20 Resistance: S 20 Resistance: P 20 Evasion (%) 50 Recoil Reduction 3 Offensive Hacking 10 Item Schematics ----------------- Lrg. Storage Unit | -10/Materials | Hacked ECM Suite | -10/Materials | Hacked Robot Schematics ------------------ None Fabricated ------------ Nothing Alien Tech Used ----------------- None Achievements -------------- None Challenges ------------ None Game ------ Seed ActuatorHugeDesublimator Manual? 0 Play Time 00:15:32 Cumulative 319.6 hours Start 2021.09.26 @ 20:54:21 End 2021.09.26 @ 21:09:41 Sessions 1 Manual Loads 0 Difficulty Adventurer Special Mode None Game No. 139 Rogue 28 Adventurer 109 Explorer 2 Win Type - Total 24 Types 21/2/0/0/0/0/0/0/1 Lore% 49 Gallery% 79 Achievement% 54 Wizard Run 0 Options --------- ASCII 0 Keyboard 1 Movement Numpad Keybinds 0 Fullscreen 1 Font 36/TerminusFine Map View 76x50 Tactical HUD 1 Map Filters NONE Filters NONE Steam 1 RUN: f22705d3-264a-415b-b245-8bbb123c2cea